bitfinex/quotes_SOLUSD_20240912
["timestamp","ask_amount","ask_price","bid_price","bid_amount"]
[1726152427667,50.0,135.06,134.97,60.04202203]
[1726152427981,23.902374,135.05,134.97,60.04202203]
[1726152428187,0.12549,135.04,134.97,60.04202203]
[1726152428957,0.12549,135.04,134.98,20.0]
[1726152430366,20.0,135.11,134.99,60.04202203]
[1726152430566,58.12307677,135.12,135.02,60.04202203]
[1726152430766,8.12307677,135.12,135.02,60.04202203]
[1726152431078,50.0,135.1,134.95,20.0]
[1726152431394,50.0,135.1,134.94,15.7343]
[1726152431395,50.0,135.1,134.99,20.0]
[1726152431588,50.0,135.1,134.98,60.04202203]
[1726152431589,50.0,135.08,134.98,60.04202203]
[1726152431770,50.0,135.06,134.96,60.04202203]
[1726152431970,23.776884,135.07,134.96,60.04202203]
[1726152432192,1.68787677,135.1,134.99,60.04202203]
[1726152432193,0.12549,135.06,134.99,60.04202203]
[1726152432691,0.12549,135.06,135.01,60.04202203]
[1726152432892,0.12549,135.06,134.99,60.04202203]
[1726152433090,0.12549,135.06,135.0,20.0]
[1726152433309,0.12549,135.06,134.99,60.04202203]
[1726152433966,0.12549,135.03,134.99,60.04202203]
[1726152435370,0.12549,135.06,134.96,60.04202203]
[1726152435371,0.12549,135.06,135.01,60.04202203]
[1726152435676,23.776884,135.11,134.95,20.0]
[1726152435868,6.4352,135.12,135.0,20.0]
[1726152436200,6.4352,135.12,134.99,6.4226]
[1726152436369,50.0,135.11,135.01,60.04202203]
[1726152436691,6.4352,135.12,135.01,60.04202203]
[1726152436894,6.4352,135.12,135.03,60.04202203]
[1726152437267,56.4352,135.12,135.01,60.04202203]
[1726152437774,6.4352,135.12,135.01,60.04202203]
[1726152438101,6.4352,135.12,134.99,6.4226]
[1726152438102,6.4352,135.12,135.03,60.04202203]
[1726152439911,6.4352,135.12,135.05,60.04202203]
[1726152440775,0.4570001,135.15,135.07,60.04202203]
[1726152441998,0.4570001,135.15,135.09,60.04202203]
[1726152442398,0.4570001,135.15,135.13,60.04202203]
[1726152443098,0.4570001,135.15,135.12,16.5651]
[1726152444621,0.4570001,135.15,135.14,60.04202203]
[1726152444817,0.4570001,135.15,135.12,76.60712203]
[1726152445924,0.4570001,135.22,135.15,20.0]
[1726152446124,0.4570001,135.22,135.18,60.04202203]
[1726152446424,0.4570001,135.22,135.2,36.83336019]
[1726152447702,303.5,135.32,135.2,36.83336019]
[1726152447703,0.3687675,135.29,135.2,36.83336019]
[1726152448101,50.0,135.28,135.18,36.83336019]
[1726152448334,0.3687675,135.29,135.18,36.83336019]
[1726152448624,0.3687675,135.29,135.2,36.83336019]
[1726152449029,50.0,135.28,135.17,36.83336019]
[1726152449233,56.6552,135.24,135.13,36.83336019]
[1726152449525,50.0,135.22,135.11,36.83336019]
[1726152449696,50.0,135.24,135.11,36.83336019]
[1726152449897,23.776884,135.24,135.13,36.83336019]
[1726152450121,0.12549,135.23,135.15,36.83336019]
[1726152450622,0.12549,135.23,135.17,36.83336019]
[1726152451408,6.0035,135.27,135.19,36.83336019]
[1726152451814,6.0035,135.27,135.21,36.83336019]
[1726152452326,6.0035,135.27,135.17,36.83336019]
[1726152452327,56.0035,135.27,135.17,36.83336019]
[1726152452510,6.0035,135.27,135.19,36.83336019]
[1726152453336,0.3687675,135.29,135.21,36.83336019]
[1726152453627,0.3687675,135.29,135.19,36.83336019]
[1726152454133,0.3687675,135.29,135.21,36.83336019]
[1726152454426,0.3687675,135.29,135.23,36.83336019]
[1726152454929,0.3687675,135.29,135.21,36.83336019]
[1726152455338,0.3687675,135.29,135.23,36.83336019]
[1726152457525,0.3687675,135.29,135.27,36.83336019]
[1726152461238,0.4979334,135.37,135.28,20.0]
[1726152461414,0.4979334,135.37,135.28,35.5811]
[1726152461616,0.4979334,135.37,135.28,72.41446019]
[1726152461820,7.1463334,135.37,135.28,36.83336019]
[1726152462007,0.4979334,135.37,135.26,36.83336019]
[1726152462224,0.25098,135.36,135.26,36.83336019]
[1726152463453,24.027864,135.36,135.26,36.83336019]
[1726152464135,0.25098,135.36,135.28,36.83336019]
[1726152465131,0.4979334,135.37,135.28,36.83336019]
[1726152465434,0.4979334,135.37,135.3,36.83336019]
[1726152466328,0.4979334,135.37,135.28,36.83336019]
[1726152466711,0.4979334,135.37,135.24,58.40376019]
[1726152466712,0.12549,135.36,135.26,36.83336019]
[1726152467838,0.25098,135.36,135.26,36.83336019]
[1726152468018,0.25098,135.36,135.28,36.83336019]
[1726152471022,0.25098,135.36,135.27,20.0]
[1726152471234,0.25098,135.36,135.28,36.83336019]
[1726152473744,0.25098,135.36,135.26,36.83336019]
[1726152473943,22.19,135.35,135.26,36.83336019]
[1726152474146,0.25098,135.34,135.25,20.0]
[1726152474328,24.027864,135.34,135.25,20.0]
[1726152476126,6.3582,135.33,135.24,36.83336019]
[1726152476333,15.58568,135.32,135.22,36.83336019]
[1726152477927,15.58568,135.32,135.23,20.0]
[1726152478451,15.58568,135.32,135.22,36.83336019]
[1726152478452,15.58568,135.32,135.24,36.83336019]
[1726152479426,15.58568,135.32,135.22,56.83336019]
[1726152479647,23.776884,135.31,135.22,56.83336019]
[1726152479831,0.12549,135.3,135.22,56.83336019]
[1726152480154,0.25098,135.3,135.22,56.83336019]
[1726152481255,0.25098,135.3,135.24,36.83336019]
[1726152481431,0.25098,135.31,135.24,36.83336019]
[1726152482132,0.12549,135.31,135.26,22.99809048]
[1726152482332,6.3582,135.33,135.26,24.30658973]
[1726152482535,6.3582,135.33,135.26,22.99809048]
[1726152483251,6.3582,135.33,135.28,22.99809048]
[1726152484354,6.3582,135.33,135.27,36.78803313]
[1726152484860,0.12549,135.32,135.27,36.78803313]
[1726152485755,0.25098,135.32,135.27,36.78803313]
[1726152486330,6.3582,135.33,135.27,36.78803313]
[1726152486859,6.3582,135.33,135.25,20.0]
[1726152487736,45.851064,135.32,135.18,6.5905]
[1726152487941,30.428784,135.3,135.2,36.78803313]
[1726152488258,6.0086,135.28,135.2,36.78803313]
[1726152488447,24.027864,135.27,135.2,36.78803313]
[1726152488644,0.25098,135.27,135.2,36.78803313]
[1726152488868,0.25098,135.27,135.15,6.5473]
[1726152488869,30.681264,135.27,135.18,36.78803313]
[1726152489077,23.776884,135.25,135.16,36.78803313]
[1726152489242,0.25098,135.24,135.18,36.78803313]
[1726152489859,0.25098,135.25,135.18,36.78803313]
[1726152490042,0.25098,135.25,135.19,20.0]
[1726152491839,0.25098,135.25,135.2,36.78803313]
[1726152492048,0.25098,135.25,135.18,36.78803313]
[1726152492049,6.0086,135.28,135.22,36.78803313]
[1726152492862,6.0086,135.28,135.21,20.0]
[1726152494059,0.25098,135.27,135.21,20.0]
[1726152494264,0.25098,135.27,135.19,20.0]
[1726152496380,6.0086,135.28,135.19,23.98598567]
[1726152496555,6.0086,135.28,135.22,36.78803313]
[1726152497368,6.0086,135.28,135.23,20.0]
[1726152497568,6.0086,135.28,135.24,36.78803313]
[1726152497769,6.0086,135.28,135.25,20.0]
[1726152497951,6.6186,135.32,135.25,20.0]
[1726152498764,6.6186,135.32,135.22,20.0]
[1726152499066,6.6186,135.32,135.24,20.0]
[1726152499248,0.25098,135.31,135.24,20.0]
[1726152500369,24.027864,135.31,135.21,36.78803313]
[1726152500559,6.6519,135.3,135.21,36.78803313]
[1726152500881,24.027864,135.29,135.19,36.78803313]
[1726152501249,16.5621,135.27,135.19,36.78803313]
[1726152501565,24.027864,135.26,135.17,36.78803313]
[1726152501785,6.029,135.25,135.15,36.78803313]
[1726152501956,6.6563,135.21,135.1,15.3576]
[1726152502276,6.27998,135.2,135.1,52.14563313]
[1726152502647,6.27998,135.2,135.1,36.78803313]
[1726152503373,6.27998,135.2,135.11,20.0]
[1726152504350,6.27998,135.2,135.1,36.78803313]
[1726152504557,23.776884,135.19,135.1,36.78803313]
[1726152504878,0.25098,135.18,135.1,36.78803313]
[1726152505870,0.25098,135.18,135.11,20.0]
[1726152506074,16.1381,135.17,135.09,20.4979334]
[1726152506264,0.25098,135.16,135.09,20.4979334]
[1726152508080,0.25098,135.16,135.1,36.78803313]
[1726152508271,16.1381,135.17,135.12,36.78803313]
[1726152508589,6.029,135.2,135.14,36.78803313]
[1726152509586,6.029,135.2,135.15,20.0]
[1726152510378,6.2943,135.27,135.19,20.0]
[1726152510676,6.2943,135.27,135.2,36.78803313]
[1726152511054,6.2943,135.27,135.17,36.78803313]
[1726152511055,12.9478,135.27,135.18,20.0]
[1726152511373,6.2943,135.27,135.16,20.0]
[1726152512281,12.9476,135.27,135.16,20.0]
[1726152512855,6.2943,135.27,135.16,20.0]
[1726152513166,23.776884,135.26,135.16,20.0]
[1726152513368,24.027864,135.26,135.14,20.0]
[1726152513565,74.027864,135.26,135.14,20.0]
[1726152513789,80.681864,135.26,135.14,20.0]
[1726152514173,29.6459,135.25,135.14,20.0]
[1726152514389,29.6459,135.25,135.12,20.1738996]
[1726152514390,24.027864,135.24,135.12,20.1738996]
[1726152514763,24.027864,135.24,135.13,36.78803313]
[1726152514960,22.9914,135.25,135.16,20.0]
[1726152515563,22.9914,135.25,135.14,20.0]
[1726152516288,23.902374,135.24,135.14,20.0]
[1726152516588,23.776884,135.22,135.14,20.0]
[1726152516783,0.12549,135.21,135.14,20.0]
[1726152519195,22.9914,135.25,135.14,20.0]
[1726152519397,22.9914,135.25,135.15,36.78803313]
[1726152520071,22.9914,135.25,135.14,20.0]
[1726152520492,23.776884,135.24,135.14,20.0]
[1726152520712,0.25098,135.23,135.14,20.0]
[1726152523493,22.9914,135.25,135.15,36.78803313]
[1726152523806,22.9914,135.25,135.15,0.1738996]
[1726152524178,22.9914,135.25,135.15,36.96193273]
[1726152524779,24.027864,135.24,135.15,36.96193273]
[1726152525701,22.9914,135.25,135.17,36.78803313]
[1726152525920,22.9914,135.25,135.19,36.78803313]
[1726152526125,6.5422,135.25,135.19,36.78803313]
[1726152526397,6.5422,135.25,135.2,20.0]
[1726152526907,23.2325,135.28,135.2,20.0]
[1726152527094,23.2325,135.28,135.21,36.78803313]
[1726152527600,6.6094,135.28,135.21,36.78803313]
[1726152528104,6.6094,135.28,135.22,20.0]
[1726152529592,0.12549,135.27,135.22,20.0]
[1726152529905,0.25098,135.27,135.22,20.0]
[1726152531810,0.25098,135.27,135.21,36.78803313]
[1726152532227,24.027864,135.27,135.17,36.78803313]
[1726152532517,30.681264,135.27,135.17,36.78803313]
[1726152532691,24.027864,135.27,135.17,36.78803313]
[1726152533086,24.027864,135.27,135.19,36.78803313]
[1726152533087,0.25098,135.27,135.19,36.78803313]
[1726152533290,0.25098,135.27,135.21,36.78803313]
[1726152534414,0.25098,135.27,135.2,20.0]
[1726152535023,0.12549,135.27,135.2,20.0]
[1726152535192,6.6094,135.28,135.21,36.78803313]
[1726152535904,6.6094,135.28,135.2,20.0]
[1726152536491,0.12549,135.27,135.2,20.0]
[1726152536692,0.25098,135.27,135.2,20.0]
[1726152538106,0.25098,135.27,135.21,23.01578477]
[1726152539512,24.027864,135.27,135.21,23.01578477]
[1726152539714,24.027864,135.27,135.19,23.01578477]
[1726152540112,24.027864,135.27,135.15,0.1738996]
[1726152540113,16.406,135.26,135.17,23.01578477]
[1726152540305,24.027864,135.25,135.17,23.01578477]
[1726152540506,24.027864,135.25,135.17,20.93319895]
[1726152541221,0.25098,135.25,135.19,23.01578477]
[1726152541724,16.406,135.26,135.2,20.0]
[1726152541898,16.406,135.26,135.21,23.01578477]
[1726152542098,6.6094,135.28,135.21,23.01578477]
[1726152542593,6.6094,135.28,135.22,20.0]
[1726152543011,6.6094,135.28,135.25,23.01578477]
[1726152543197,6.8347264,135.31,135.25,23.01578477]
[1726152543622,6.8347264,135.31,135.23,23.01578477]
[1726152543920,6.8347264,135.31,135.22,20.0]
[1726152544118,6.8347264,135.31,135.22,56.81683657]
[1726152544514,23.776884,135.3,135.22,56.81683657]
[1726152544820,0.12549,135.29,135.22,56.81683657]
[1726152545228,0.25098,135.29,135.22,56.81683657]
[1726152545411,0.25098,135.3,135.22,56.81683657]
[1726152546123,6.8347264,135.31,135.24,36.81683657]
[1726152546496,6.8347264,135.31,135.25,20.0]
[1726152547398,6.8347264,135.31,135.23,20.0]
[1726152547612,0.25098,135.3,135.23,20.0]
[1726152548198,0.25098,135.3,135.24,36.81683657]
[1726152548420,0.25098,135.3,135.25,20.0]
[1726152549229,0.25098,135.3,135.24,36.81683657]
[1726152552322,0.12549,135.3,135.25,20.0]
[1726152552627,6.8347264,135.31,135.25,20.0]
[1726152553710,0.25098,135.3,135.25,20.0]
[1726152555630,0.25098,135.3,135.26,36.81683657]
[1726152558944,0.25098,135.3,135.27,20.0]
[1726152563038,0.2400264,135.31,135.29,20.0]
[1726152563344,259.8966,135.42,135.31,20.0]
[1726152563521,6.3966,135.42,135.37,36.81683657]
[1726152563915,56.3966,135.42,135.26,21.8375]
[1726152564113,56.3966,135.42,135.28,36.81683657]
[1726152564114,43.6429,135.37,135.28,36.81683657]
[1726152564319,21.4529,135.37,135.26,36.81683657]
[1726152564535,21.4529,135.37,135.28,36.81683657]
[1726152564714,24.027864,135.36,135.28,36.81683657]
[1726152564913,24.027864,135.36,135.26,36.81683657]
[1726152565135,23.776884,135.34,135.25,3.98323693]
[1726152565317,0.25098,135.33,135.25,3.98323693]
[1726152565514,0.25098,135.33,135.26,36.81683657]
[1726152566931,0.25098,135.33,135.25,23.98323693]
[1726152569222,0.493154,135.33,135.25,23.98323693]
[1726152569818,0.493154,135.33,135.25,20.0]
[1726152571639,23.776884,135.32,135.25,20.0]
[1726152571813,0.25098,135.31,135.25,20.0]
[1726152573448,6.4155,135.3,135.23,20.0]
[1726152573746,0.25098,135.29,135.23,20.0]
[1726152576853,24.027864,135.29,135.2,36.81683657]
[1726152577752,46.217864,135.29,135.18,52.48173657]
[1726152577952,96.217864,135.29,135.18,36.81683657]
[1726152578130,96.217864,135.29,135.17,0.285263]
[1726152578453,96.217864,135.29,135.17,4.28223942]
[1726152578827,96.217864,135.29,135.17,24.28223942]
[1726152579035,42.19,135.28,135.18,36.81683657]
[1726152579241,24.027864,135.27,135.18,36.81683657]
[1726152579750,22.377,135.26,135.17,0.285263]
[1726152580061,24.027864,135.25,135.17,0.285263]
[1726152580348,46.217864,135.25,135.17,0.285263]
[1726152581419,24.027864,135.25,135.17,0.285263]
[1726152584058,22.377,135.26,135.19,20.0]
[1726152584748,22.377,135.26,135.17,0.285263]
[1726152584749,22.377,135.26,135.2,36.81683657]
[1726152584932,22.377,135.26,135.21,20.0]
[1726152585456,6.6387,135.26,135.21,20.0]
[1726152585632,6.6387,135.26,135.19,20.0]
[1726152586226,0.25098,135.25,135.19,20.0]
[1726152587155,0.12549,135.25,135.19,56.81683657]
[1726152588030,6.6387,135.26,135.22,20.0]
[1726152588224,16.074,135.29,135.22,20.0]
[1726152588225,22.4063,135.29,135.23,23.0067862]
[1726152589538,0.12549,135.28,135.24,20.0]
[1726152590256,0.12549,135.28,135.22,36.80931504]
[1726152590467,0.12549,135.28,135.23,20.0]
[1726152590754,0.25098,135.28,135.23,20.0]
[1726152591733,6.757074,135.32,135.26,36.80931504]
[1726152592369,6.757074,135.32,135.27,20.0]
[1726152592574,6.757074,135.32,135.18,16.3744]
[1726152592774,6.757074,135.32,135.23,20.0]
[1726152593145,6.757074,135.32,135.25,20.0]
[1726152593860,6.757074,135.32,135.26,36.80931504]
[1726152594174,6.757074,135.32,135.28,36.80931504]
[1726152594352,6.757074,135.32,135.29,20.0]
[1726152594955,0.242174,135.32,135.29,20.0]
[1726152596148,0.12549,135.31,135.29,20.0]
[1726152596556,0.12549,135.31,135.27,20.0]
[1726152596759,0.25098,135.31,135.27,20.0]
[1726152597452,0.25098,135.31,135.25,20.0]
[1726152598276,0.25098,135.31,135.24,36.80931504]
[1726152599076,23.776884,135.34,135.24,36.80931504]
[1726152599447,23.776884,135.34,135.25,20.0]
[1726152600797,16.2948,135.31,135.22,0.2637185]
[1726152600989,23.902374,135.3,135.22,0.2637185]
[1726152601161,0.12549,135.29,135.22,37.07303354]
[1726152601367,0.25098,135.3,135.24,36.80931504]
[1726152602101,6.59728,135.3,135.25,20.0]
[1726152602406,0.25098,135.3,135.25,20.0]
[1726152602575,0.25098,135.3,135.26,36.80931504]
[1726152602775,0.12549,135.3,135.26,36.80931504]
[1726152602983,0.12549,135.3,135.22,20.2637185]
[1726152602984,0.12549,135.3,135.24,36.80931504]
[1726152603177,0.12549,135.3,135.25,20.0]
[1726152603685,0.12549,135.3,135.22,37.07303354]
[1726152604084,24.027864,135.31,135.22,0.2637185]
[1726152604697,0.25098,135.31,135.22,0.2637185]
[1726152605383,50.25098,135.31,135.22,0.2637185]
[1726152605592,23.776884,135.3,135.22,0.2637185]
[1726152605901,22.4134,135.28,135.22,0.2637185]
[1726152606102,0.25098,135.27,135.22,0.2637185]
[1726152606306,24.027864,135.27,135.22,0.2637185]
[1726152606682,23.776884,135.25,135.22,0.2637185]
[1726152607000,0.12549,135.24,135.22,0.2637185]
[1726152607215,0.25098,135.24,135.22,0.2637185]
[1726152609307,0.12549,135.24,135.22,0.2637185]
[1726152609616,22.4134,135.28,135.22,0.2637185]
[1726152609789,23.776884,135.27,135.22,0.2637185]
[1726152610714,0.12549,135.26,135.22,0.2637185]
[1726152611008,0.25098,135.26,135.22,0.2637185]
[1726152611877,22.4134,135.28,135.22,0.2637185]
[1726152612282,44.6034,135.28,135.22,0.2637185]
[1726152612510,22.4134,135.28,135.22,0.2637185]
[1726152613284,0.25098,135.27,135.22,0.2637185]
[1726152613495,22.4134,135.28,135.22,0.2637185]
[1726152614186,22.4134,135.28,135.22,23.2769922]
[1726152614407,22.4134,135.28,135.22,0.2637185]
[1726152614582,23.776884,135.27,135.22,0.2637185]
[1726152614794,0.12549,135.26,135.22,0.2637185]
[1726152615317,23.776884,135.27,135.22,0.2637185]
[1726152615318,22.4134,135.28,135.22,23.2769922]
[1726152616603,0.25098,135.27,135.24,23.0132737]
[1726152616912,15.7536,135.34,135.27,20.0]
[1726152617087,0.2637185,135.36,135.29,23.0132737]
[1726152617993,0.2637185,135.36,135.3,20.0]
[1726152618195,0.2637185,135.36,135.3,56.76973189]
[1726152618603,0.2637185,135.36,135.33,20.0]
[1726152618988,0.2637185,135.36,135.3,36.76973189]
[1726152619220,0.2637185,135.36,135.31,20.0]
[1726152620817,0.25098,135.35,135.31,20.0]
[1726152621314,0.25098,135.35,135.32,36.76973189]
[1726152622114,0.2637185,135.36,135.33,20.0]
[1726152623493,0.2637185,135.36,135.28,6.4]
[1726152623494,0.2637185,135.36,135.34,36.76973189]
[1726152623693,0.2637185,135.36,135.35,20.0]
[1726152624317,0.2637185,135.41,135.35,20.0]
[1726152624716,0.2637185,135.41,135.33,20.0]
[1726152625726,0.12549,135.4,135.33,20.0]
[1726152626107,0.2637185,135.41,135.33,20.0]
[1726152626334,259.5199185,135.44,135.33,20.0]
[1726152626504,6.2562,135.44,135.33,20.0]
[1726152627510,23.902374,135.43,135.36,36.76973189]
[1726152627740,0.12549,135.42,135.36,36.76973189]
[1726152628541,0.2637185,135.45,135.38,36.76973189]
[1726152629940,0.2279118,135.45,135.38,36.76973189]
[1726152630097,0.2279118,135.45,135.39,20.0]
[1726152631235,0.12549,135.44,135.4,36.76973189]
[1726152631423,0.2279118,135.45,135.4,36.76973189]
[1726152632615,0.2279118,135.45,135.41,20.0]
[1726152633115,0.2566368,135.48,135.44,56.76973189]
[1726152633361,0.2566368,135.48,135.44,36.76973189]
[1726152633513,0.2566368,135.48,135.41,20.0]
[1726152633514,0.2566368,135.48,135.43,20.0]
[1726152634120,0.2566368,135.48,135.41,20.0]
[1726152634814,0.25098,135.47,135.41,20.0]
[1726152635637,0.25098,135.47,135.4,20.0]
[1726152635834,45.966884,135.46,135.36,59.40963189]
[1726152636141,0.25098,135.45,135.36,59.40963189]
[1726152636527,23.776884,135.43,135.36,16.2214]
[1726152636726,0.25098,135.42,135.34,0.2566368]
[1726152637862,0.25098,135.42,135.34,20.2566368]
[1726152638768,0.25098,135.42,135.34,0.2566368]
[1726152638970,95.966884,135.4,135.34,0.2566368]
[1726152639137,23.776884,135.38,135.34,0.2566368]
[1726152639342,45.966884,135.36,135.34,0.2566368]
[1726152639567,0.25098,135.35,135.34,0.2566368]
[1726152640557,0.25098,135.35,135.34,0.0056568]
[1726152643551,23.776884,135.36,135.34,0.0056568]
[1726152644843,0.25098,135.35,135.34,0.0056568]
[1726152645749,6.4863,135.37,135.34,0.0056568]
[1726152647259,0.12549,135.36,135.34,0.0056568]
[1726152647661,56.1787,135.4,135.34,0.0056568]
[1726152647848,62.8257,135.4,135.34,0.0056568]
[1726152648178,85.81501945,135.4,135.34,0.0056568]
[1726152648777,79.16801945,135.4,135.34,0.0056568]
[1726152648960,0.12549,135.39,135.34,0.0056568]
[1726152649654,6.1787,135.4,135.34,0.0056568]
[1726152650969,0.12549,135.39,135.34,0.0056568]
[1726152651168,1.69532561,135.42,135.34,20.0056568]
[1726152651384,1.69532561,135.42,135.35,22.98931945]
[1726152652046,1.69532561,135.42,135.34,0.0056568]
[1726152652251,51.69532561,135.42,135.34,0.0056568]
[1726152652465,73.88532561,135.42,135.34,0.0056568]
[1726152652674,23.776884,135.39,135.34,0.0056568]
[1726152652856,0.25098,135.38,135.34,0.0056568]
[1726152653185,24.027864,135.41,135.34,0.0056568]
[1726152654282,30.674364,135.41,135.34,0.0056568]
[1726152654573,24.027864,135.41,135.34,0.0056568]
[1726152655951,23.776884,135.39,135.34,0.0056568]
[1726152656158,0.25098,135.38,135.34,0.0056568]
[1726152661474,73.776884,135.37,135.34,0.0056568]
[1726152661679,23.776884,135.35,135.34,0.0056568]
[1726152661872,24.027864,135.35,135.34,0.0056568]
[1726152665591,7.91442561,135.42,135.34,0.0056568]
[1726152665905,7.91442561,135.42,135.34,35.3784568]
[1726152666394,64.56042561,135.42,135.34,35.3784568]
[1726152666694,86.79042561,135.42,135.34,35.3784568]
[1726152666900,64.56042561,135.42,135.34,35.3784568]
[1726152667209,23.776884,135.41,135.34,15.3784568]
[1726152667413,50.12549,135.4,135.34,0.0056568]
[1726152667610,23.776884,135.37,135.34,0.0056568]
[1726152667818,0.25098,135.36,135.34,0.0056568]
[1726152668918,58.937584,135.35,135.34,0.0056568]
[1726152669091,58.937584,135.35,135.3,0.2566368]
[1726152669092,50.0,135.31,135.3,0.2566368]
[1726152669422,96.132374,135.31,135.3,0.2566368]
[1726152669601,96.132374,135.31,135.26,0.2566368]
[1726152669602,72.23,135.29,135.26,0.2566368]
[1726152669795,23.902374,135.28,135.26,0.2566368]
[1726152670427,52.785274,135.28,135.26,0.2566368]
[1726152670788,46.132374,135.28,135.26,0.2566368]
[1726152671215,0.12549,135.27,135.26,0.2566368]
[1726152673121,6.6514,135.31,135.26,0.2566368]
[1726152673122,86.75695838,135.33,135.26,0.2566368]
[1726152673294,50.0,135.31,135.26,0.2566368]
[1726152674519,23.776884,135.3,135.26,0.2566368]
[1726152674724,0.25098,135.29,135.26,0.2566368]
[1726152677624,50.25098,135.29,135.26,0.2566368]
[1726152677830,23.776884,135.28,135.26,0.2566368]
[1726152678014,0.25098,135.27,135.26,0.2566368]
[1726152679704,23.776884,135.31,135.26,0.2566368]
[1726152681230,0.25098,135.3,135.26,0.2566368]
[1726152681614,23.776884,135.31,135.27,16.3275]
[1726152682012,66.53005009,135.38,135.27,16.3275]
[1726152682245,66.53005009,135.38,135.27,22.9825]
[1726152682246,50.0,135.36,135.27,22.9825]
[1726152682554,118.4891791,135.39,135.28,20.0]
[1726152682845,50.0,135.37,135.28,56.75695838]
[1726152683038,56.034,135.39,135.28,56.75695838]
[1726152684325,24.027864,135.38,135.28,56.75695838]
[1726152687641,23.776884,135.38,135.32,15.5858]
[1726152689018,0.12549,135.37,135.32,15.5858]
[1726152690731,0.25098,135.38,135.32,15.5858]
[1726152691325,24.027864,135.38,135.32,15.5858]
[1726152691565,46.006884,135.36,135.32,15.5858]
[1726152691727,50.0,135.37,135.29,0.0500436]
[1726152691728,23.776884,135.34,135.29,0.0500436]
[1726152691926,0.25098,135.33,135.29,0.0500436]
[1726152692257,23.776884,135.31,135.29,0.0500436]
[1726152692569,0.25098,135.3,135.29,0.0500436]
[1726152693429,0.25098,135.3,135.24,22.674]
[1726152693654,23.776884,135.29,135.24,22.674]
[1726152694048,46.006884,135.29,135.24,16.1084]
[1726152694639,0.12549,135.28,135.24,16.1084]
[1726152695743,0.25098,135.28,135.24,16.1084]
[1726152699760,0.25098,135.28,135.21,20.2547108]
[1726152700067,0.25098,135.28,135.21,0.2547108]
[1726152711256,23.776884,135.29,135.22,23.0225067]
[1726152711459,23.776884,135.27,135.22,23.0225067]
[1726152711843,23.776884,135.29,135.22,23.0225067]
[1726152712354,80.428784,135.3,135.21,20.2547108]
[1726152712586,0.12549,135.29,135.21,0.2547108]
[1726152713379,0.25098,135.29,135.21,0.2547108]
[1726152714474,0.12549,135.29,135.22,23.0225067]
[1726152714865,0.12549,135.29,135.22,24.42429209]
[1726152715069,0.12549,135.29,135.21,20.2547108]
[1726152715291,0.12549,135.29,135.21,0.2547108]
[1726152716074,0.25098,135.29,135.21,0.2547108]
[1726152716590,23.776884,135.28,135.21,0.2547108]
[1726152716796,0.25098,135.27,135.21,0.2547108]
[1726152718094,0.25098,135.27,135.21,1.73375631]
[1726152718291,0.25098,135.27,135.21,24.75626301]
[1726152718593,23.0225067,135.32,135.21,23.2772175]
[1726152718594,20.0,135.32,135.21,23.2772175]
[1726152719686,24.027864,135.31,135.21,23.2772175]
[1726152720589,23.776884,135.32,135.22,20.0]
[1726152722064,0.25098,135.31,135.22,20.0]
[1726152726581,23.776884,135.29,135.21,20.2547108]
[1726152726802,0.25098,135.28,135.21,0.2547108]
[1726152729003,23.776884,135.27,135.21,0.2547108]
[1726152729293,0.25098,135.26,135.21,0.2547108]
[1726152730478,74.027864,135.26,135.25,0.0037308]
[1726152732477,50.0,135.24,135.21,0.2547108]
[1726152732679,30.557774,135.23,135.21,0.2547108]
[1726152732881,73.776884,135.22,135.21,0.2547108]
[1726152733181,73.902374,135.22,135.21,0.2547108]
[1726152733585,73.902374,135.22,135.17,0.2547108]
[1726152733586,50.0,135.19,135.17,0.2547108]
[1726152733781,23.902374,135.18,135.17,0.2547108]
[1726152734609,24.027864,135.18,135.17,0.2547108]
[1726152735182,56.6588,135.16,135.13,0.2547108]